[Event "Romanian-ch Women 2022"]
[Site "Eforie Nord"]
[Date "2022.02.23"]
[Round "5.10"]
[White "Pitigoi, Sabina-Andreea"]
[Black "Batagan, Ilinca-Petra"]
[Result "0-1"]
[ECO "E14"]
[WhiteElo "1766"]
[BlackElo "1881"]
[Annotator "NA RC"]
[PlyCount "86"]
[EventDate "2022.02.20"]
[EventType "swiss"]
[EventCountry "ROU"]
[SourceTitle "playchess.com"]
[Source "ChessBase"]
[SourceQuality "1"]
[TimeControl "40/5400+30:900+30"]

1. c4 {[%emt 0:00:03]} Nf6 {[%emt 0:00:36]} 2. Nf3 {[%emt 0:00:16]} e6 {[%emt 0:00:25]} 3. e3 {[%emt 0:00:10]} d5 {[%emt 0:00:37]} 4. b3 {[%emt 0:00:11]} Be7 {[%emt 0:00:44]} 5. Bb2 {[%emt 0:00:10]} O-O {[%emt 0:00:26]} 6. Nc3 {[%emt 0:01:51]} b6 {[%emt 0:00:53]} 7. cxd5 {[%emt 0:01:38]} exd5 {[%emt 0:00:21]} 8. Be2 {[%emt 0:00:13]} Bb7 {[%emt 0:00:33]} 9. O-O {[%emt 0:00:15]} c5 {[%emt 0:01:35]} 10. d4 {[%emt 0:00:29]} Nbd7 {[%emt 0:00:54]} 11. Rc1 {[%emt 0:01:40]} Rc8 {[%emt 0:01:32]} 12. dxc5 {[%emt 0:01:04]} bxc5 {[%emt 0:02:45]} 13. Na4 {[%emt 0:04:45]} Ne4 $11 {[%emt 0:11:33]} 14. Ne5 {[%emt 0:07:18]} Bf6 {[%emt 0:11:27]} 15. Nxd7 {[%emt 0:03:09]} Bxb2 {[%emt 0:02:13]} 16. Nxb2 {[%emt 0:09:06]} Qxd7 {[%emt 0:00:07]} 17. Bf3 {[%emt 0:02:40]} Qe7 {[%emt 0:05:43]} 18. Qd3 {[%emt 0:17:16]} Nf6 {[%emt 0:05:55]} 19. Rfe1 {[%emt 0:04:18]} Rfd8 {[%emt 0:01:03]} 20. Qf5 {[%emt 0:01:49]} Ne8 {[%emt 0:11:56]} 21. Qf4 {[%emt 0:07:25]} g6 {[%emt 0:11:41]} 22. h4 {[%emt 0:03:15]} Ng7 {[%emt 0:01:05]} 23. e4 {[%emt 0:04:31]} d4 {[%emt 0:06:18]} 24. Nd3 {[%emt 0:00:14]} Re8 {[%emt 0:01:12]} 25. Bg4 {[%emt 0:09:48]} Rc7 {[%emt 0:01:53]} 26. f3 {[%emt 0:03:35]} Ba6 {[%emt 0:02:12]} 27. Nb4 {[%emt 0:01:06]} Bb7 {[%emt 0:01:51]} 28. Nd5 {[%emt 0:02:19]} Bxd5 {[%emt 0:00:10]} 29. exd5 {[%emt 0:00:04]} Qd8 {[%emt 0:02:20]} 30. d6 {[%emt 0:01:43]} Rc6 {[%emt 0:01:51]} 31. d7 {[%emt 0:04:14]} Rxe1+ {[%emt 0:00:42]} 32. Rxe1 {[%emt 0:00:05]} f5 {[%emt 0:01:50]} 33. Qg5 {[%emt 0:05:34]} Qxd7 {[%emt 0:00:12]} 34. Re7 {[%emt 0:00:36]} h6 {[%emt 0:01:20]} 35. Rxd7 {[%emt 0:03:06]} hxg5 {[%emt 0:00:04]} 36. Bh3 {[%emt 0:00:22]} gxh4 {[%emt 0:00:20]} 37. Kf2 {[%emt 0:00:36]} Nh5 {[%emt 0:01:31]} 38. Ke1 {[%emt 0:01:16]} Ng3 {[%emt 0:02:28]} 39. Rxa7 {[%emt 0:00:32]} Kf8 {[%emt 0:02:46]} 40. Kd1 {[%emt 0:00:00]} Rd6 {[%emt 0:00:00]} 41. a4 {[%emt 0:04:19]} d3 {[%emt 0:06:45]} 42. Rc7 {[%emt 0:04:53]} d2 {[%emt 0:00:21]} 43. Rxc5 {[%emt 0:00:42]} Nh1 {[%emt 0:00:06]} 0-1

[Event "Romanian-ch Women 2022"]
[Site "Eforie Nord"]
[Date "2022.02.23"]
[Round "5.11"]
[White "Panainte, Andreea-Bianca"]
[Black "Hoanca, Alexia-Ioana"]
[Result "1-0"]
[ECO "B19"]
[WhiteElo "1865"]
[BlackElo "1710"]
[Annotator "NA RC"]
[PlyCount "97"]
[EventDate "2022.02.20"]
[EventType "swiss"]
[EventCountry "ROU"]
[SourceTitle "playchess.com"]
[Source "ChessBase"]
[SourceQuality "1"]
[TimeControl "40/5400+30:900+30"]

1. e4 {[%emt 0:00:30]} c6 {[%emt 0:00:08]} 2. d4 {[%emt 0:00:05]} d5 {[%emt 0:00:06]} 3. Nc3 {[%emt 0:00:04]} dxe4 {[%emt 0:00:05]} 4. Nxe4 {[%emt 0:00:04]} Bf5 {[%emt 0:00:23]} 5. Ng3 {[%emt 0:00:10]} Bg6 $1 {[%emt 0:00:08]} 6. h4 {[%emt 0:00:06]} h6 $1 {[%emt 0:00:04]} 7. h5 {[%emt 0:00:05]} Bh7 {[%emt 0:00:04]} 8. Nf3 {[%emt 0:00:17]} Nd7 {[%emt 0:00:15]} 9. Bd3 {[%emt 0:00:27]} Bxd3 {[%emt 0:00:22]} 10. Qxd3 {[%emt 0:00:09]} ({Don't play} 10. cxd3 Ngf6 $15) 10... e6 {[%emt 0:00:34]} 11. Bd2 {[%emt 0:00:29]} Qc7 {[%emt 0:00:45]} 12. O-O-O {[%emt 0:00:42]} O-O-O {[%emt 0:00:34]} 13. Ne4 {[%emt 0:05:52]} Ngf6 {[%emt 0:01:41]} 14. g3 {[%emt 0:02:47]} Nxe4 {[%emt 0:01:40]} 15. Qxe4 {[%emt 0:00:05]} Nf6 {[%emt 0:00:37]} 16. Qe2 {[%emt 0:00:18]} Bd6 {[%emt 0:07:16]} 17. c4 {[%emt 0:01:43]} c5 {[%emt 0:01:58]} 18. Bc3 {[%emt 0:01:15]} cxd4 {[%emt 0:01:49]} 19. Nxd4 $11 {[%emt 0:00:54]} Qe7 {[%emt 0:25:42]} 20. a3 {[%emt 0:12:17]} a6 {[%emt 0:08:06]} 21. b4 {[%emt 0:05:25]} Kb8 {[%emt 0:11:06]} 22. Kb1 {[%emt 0:01:25]} Bc7 {[%emt 0:02:16]} 23. c5 {[%emt 0:01:54]} Nd5 {[%emt 0:02:05]} 24. Bb2 {[%emt 0:00:06]} a5 {[%emt 0:09:04]} 25. Qb5 {[%emt 0:00:55]} Ka8 {[%emt 0:06:38]} 26. bxa5 {[%emt 0:05:32]} Bb8 {[%emt 0:01:22]} 27. a6 {[%emt 0:05:00]} bxa6 {[%emt 0:06:42]} 28. Qxa6+ {[%emt 0:00:10]} Qa7 {[%emt 0:00:15]} 29. Qc4 {[%emt 0:01:48]} Rc8 {[%emt 0:02:23]} 30. Rc1 {[%emt 0:01:30]} Bc7 {[%emt 0:06:32]} 31. Nc6 {[%emt 0:00:59]} Nb6 {[%emt 0:01:55]} 32. Nxa7 {[%emt 0:01:49]} Nxc4 {[%emt 0:00:10]} 33. Nxc8 {[%emt 0:00:11]} Nxb2 {[%emt 0:00:39]} 34. Kxb2 {[%emt 0:00:17]} Be5+ {[%emt 0:00:44]} 35. Kb3 {[%emt 0:00:10]} Rxc8 {[%emt 0:00:05]} 36. Rhd1 {[%emt 0:00:29]} Kb7 {[%emt 0:01:17]} 37. Rd7+ {[%emt 0:00:15]} Kc6 {[%emt 0:00:15]} 38. Rcd1 {[%emt 0:03:02]} Ra8 {[%emt 0:01:56]} 39. f4 {[%emt 0:03:05]} Bc7 {[%emt 0:01:30]} 40. a4 {[%emt 0:00:00]} Rb8+ {[%emt 0:00:00]} 41. Ka3 {[%emt 0:06:50]} Ba5 {[%emt 0:01:53]} 42. Rxf7 {[%emt 0:00:26]} Kxc5 {[%emt 0:01:37]} 43. Rxg7 {[%emt 0:01:13]} Kc4 {[%emt 0:00:58]} 44. Rc1+ {[%emt 0:03:14]} Kd3 {[%emt 0:00:32]} 45. Ra7 {[%emt 0:01:39]} Bb4+ {[%emt 0:01:12]} 46. Ka2 {[%emt 0:00:15]} Bf8 {[%emt 0:00:20]} 47. Rb1 {[%emt 0:02:15]} Rc8 {[%emt 0:00:40]} 48. Rd7+ {[%emt 0:01:40]} Kc2 {[%emt 0:00:17]} 49. Rdd1 {[%emt 0:08:34]} 1-0

[Event "Romanian-ch Women 2022"]
[Site "Eforie Nord"]
[Date "2022.02.23"]
[Round "5.12"]
[White "Coman, Emilia-Florentina"]
[Black "Maria, Lia-Alexandra"]
[Result "0-1"]
[ECO "D26"]
[WhiteElo "1776"]
[BlackElo "1832"]
[Annotator "NA RC"]
[PlyCount "58"]
[EventDate "2022.02.20"]
[EventType "swiss"]
[EventCountry "ROU"]
[SourceTitle "playchess.com"]
[Source "ChessBase"]
[SourceQuality "1"]
[TimeControl "40/5400+30:900+30"]

1. d4 {[%emt 0:00:02]} d5 {[%emt 0:00:09]} 2. c4 {[%emt 0:00:16]} dxc4 {[%emt 0:00:07]} 3. Nc3 {[%emt 0:00:05]} Nf6 {[%emt 0:00:23]} 4. e3 {[%emt 0:01:33]} a6 {[%emt 0:00:43]} 5. Bxc4 {[%emt 0:00:33]} e6 {[%emt 0:01:11]} 6. Nf3 {[%emt 0:00:48]} b5 {[%emt 1:30:57]} 7. Bd3 {[%emt 0:00:37]} Bb7 {[%emt 0:00:00]} 8. Qc2 {[%emt 0:00:52]} (8. e4 $11) 8... Nbd7 {[%emt 0:00:00]} 9. Ne4 {[%emt 0:06:20]} Be7 {[%emt 0:00:00]} 10. Bd2 {[%emt 0:03:01]} Rc8 $11 {[%emt 0:00:00]} 11. Nc5 {[%emt 0:04:37]} Nxc5 {[%emt 0:00:00]} 12. dxc5 {[%emt 0:00:26]} Bxf3 {[%emt 0:00:00]} 13. gxf3 {[%emt 0:01:28]} Qd5 {[%emt 0:00:00]} 14. Be2 {[%emt 0:21:42]} Bxc5 {[%emt 0:00:00]} 15. b4 {[%emt 0:03:23]} Be7 {[%emt 0:00:00]} 16. Rg1 {[%emt 0:02:17]} O-O {[%emt 0:00:00]} 17. Rd1 {[%emt 0:00:48]} Qb7 {[%emt 0:00:00]} 18. Bc3 {[%emt 0:01:20]} c5 {[%emt 0:00:00]} 19. Qb2 {[%emt 0:02:25]} Kh8 {[%emt 0:00:00]} 20. bxc5 {[%emt 0:20:28]} Rxc5 {[%emt 0:00:00]} 21. Bb4 {[%emt 0:00:26]} Rd5 {[%emt 0:00:00]} 22. Rxd5 {[%emt 0:00:43]} exd5 {[%emt 0:00:00]} 23. Bc3 {[%emt 0:03:31]} Qc6 {[%emt 0:00:00]} 24. Kd2 {[%emt 0:02:39]} Rc8 {[%emt 0:00:00]} 25. Bd4 {[%emt 0:04:49]} Qc7 {[%emt 0:00:00]} 26. Rg3 {[%emt 0:01:28]} Qa5+ {[%emt 0:00:00]} 27. Kd3 {[%emt 0:03:58]} Ba3 {[%emt 0:00:00]} 28. Qa1 {[%emt 0:00:13]} Qa4 {[%emt 0:00:00]} 29. e4 {[%emt 0:07:14]} Qc2+ {[%emt 0:00:00]} 0-1

[Event "Romanian-ch Women 2022"]
[Site "Eforie Nord"]
[Date "2022.02.24"]
[Round "6.1"]
[White "Lehaci, Miruna-Daria"]
[Black "Ciolacu, Alessia-Mihaela"]
[Result "1/2-1/2"]
[ECO "B23"]
[WhiteElo "2125"]
[BlackElo "2239"]
[Annotator "RC"]
[PlyCount "68"]
[EventDate "2022.02.20"]
[EventType "swiss"]
[EventCountry "ROU"]
[SourceTitle "playchess.com"]
[Source "ChessBase"]
[SourceQuality "1"]
[TimeControl "40/5400+30:900+30"]

1. e4 {[%emt 0:00:03]} e5 {[%emt 0:00:11]} 2. Nc3 {[%emt 0:00:05]} Nf6 {[%emt 0:00:10]} 3. g3 {[%emt 0:00:04]} c6 {[%emt 0:00:24]} 4. d4 {[%emt 0:01:55]} exd4 {[%emt 0:00:58]} 5. Qxd4 {[%emt 0:00:13]} d5 {[%emt 0:06:11]} 6. exd5 {[%emt 0:09:54]} cxd5 {[%emt 0:01:01]} 7. Bg5 {[%emt 0:07:27]} Be7 {[%emt 0:05:00]} 8. Bg2 {[%emt 0:02:46]} Nc6 {[%emt 0:01:06]} 9. Qd2 {[%emt 0:03:45]} d4 {[%emt 0:07:25]} 10. Bxf6 {[%emt 0:04:35]} Bxf6 {[%emt 0:00:06]} 11. Nd5 {[%emt 0:00:47]} Be6 {[%emt 0:03:56]} 12. Nxf6+ {[%emt 0:00:55]} Qxf6 {[%emt 0:00:02]} 13. Ne2 {[%emt 0:01:42]} Rd8 {[%emt 0:02:18]} 14. O-O {[%emt 0:11:38]} O-O {[%emt 0:07:52]} 15. Nf4 {[%emt 0:01:01]} Bf5 {[%emt 0:03:17]} 16. Rfe1 {[%emt 0:02:39]} Rd7 {[%emt 0:11:29]} 17. Nd3 {[%emt 0:07:13]} Qd6 {[%emt 0:06:03]} 18. h3 {[%emt 0:06:06]} h6 {[%emt 0:04:50]} 19. Re2 {[%emt 0:00:44]} Bxd3 {[%emt 0:10:01]} 20. Qxd3 {[%emt 0:03:07]} Nb4 {[%emt 0:02:03]} 21. Qd1 {[%emt 0:09:21]} Rfd8 {[%emt 0:03:43]} 22. Rd2 {[%emt 0:02:11]} Qb6 {[%emt 0:06:18]} 23. Be4 {[%emt 0:07:40]} Re7 {[%emt 0:00:51]} 24. Qf3 {[%emt 0:03:55]} Rde8 {[%emt 0:00:55]} 25. Re2 {[%emt 0:01:43]} Nxc2 {[%emt 0:05:03]} 26. Rc1 {[%emt 0:01:06]} Nb4 {[%emt 0:00:32]} 27. Rce1 {[%emt 0:00:49]} Re6 {[%emt 0:00:47]} 28. a3 {[%emt 0:01:22]} Nc6 {[%emt 0:03:25]} 29. Bd5 {[%emt 0:01:01]} Ne5 {[%emt 0:02:23]} 30. Rxe5 {[%emt 0:05:52]} Rxe5 {[%emt 0:00:07]} 31. Qxf7+ {[%emt 0:00:45]} Kh7 {[%emt 0:00:10]} 32. Rxe5 {[%emt 0:00:05]} Rxe5 {[%emt 0:00:07]} 33. Qg8+ {[%emt 0:00:04]} Kg6 {[%emt 0:00:05]} 34. Qf7+ {[%emt 0:00:11]} Kh7 {[%emt 0:00:07]} 1/2-1/2

[Event "Romanian-ch Women 2022"]
[Site "Eforie Nord"]
[Date "2022.02.24"]
[Round "6.2"]
[White "Sandu, Mihaela"]
[Black "Baciu, Anca-Otilia"]
[Result "1-0"]
[ECO "B84"]
[WhiteElo "2269"]
[BlackElo "2014"]
[Annotator "RC"]
[PlyCount "39"]
[EventDate "2022.02.20"]
[EventType "swiss"]
[EventCountry "ROU"]
[SourceTitle "playchess.com"]
[Source "ChessBase"]
[SourceQuality "1"]
[TimeControl "40/5400+30:900+30"]

1. e4 {[%emt 0:00:02]} c5 {[%emt 0:00:11]} 2. Nf3 {[%emt 0:00:03]} e6 {[%emt 0:00:05]} 3. d4 {[%emt 0:00:06]} cxd4 {[%emt 0:00:06]} 4. Nxd4 {[%emt 0:00:07]} Nf6 {[%emt 0:00:06]} 5. Nc3 {[%emt 0:00:07]} d6 {[%emt 0:00:05]} 6. Be2 {[%emt 0:00:05]} a6 {[%emt 0:00:09]} 7. a4 {[%emt 0:00:12]} Qc7 {[%emt 0:00:30]} 8. O-O {[%emt 0:00:05]} Be7 {[%emt 0:00:50]} 9. Kh1 {[%emt 0:00:36]} b6 {[%emt 0:00:21]} 10. f4 {[%emt 0:00:05]} Bb7 {[%emt 0:00:06]} 11. Bf3 {[%emt 0:00:05]} Nbd7 {[%emt 0:00:28]} 12. Qe1 {[%emt 0:00:14]} g6 {[%emt 0:04:15]} 13. e5 {[%emt 0:04:58]} Nd5 {[%emt 0:19:58]} 14. Nxd5 {[%emt 0:01:23]} Bxd5 {[%emt 0:00:07]} 15. Bxd5 {[%emt 0:00:21]} exd5 {[%emt 0:00:06]} 16. e6 {[%emt 0:02:20]} Nf6 {[%emt 0:12:55]} 17. f5 {[%emt 0:06:43]} O-O-O {[%emt 0:06:58]} 18. exf7 {[%emt 0:02:28]} Qc4 {[%emt 0:01:55]} 19. Ne6 {[%emt 0:04:06]} Rd7 {[%emt 0:06:44]} 20. Bh6 {[%emt 0:03:55]} 1-0

[Event "Romanian-ch Women 2022"]
[Site "Eforie Nord"]
[Date "2022.02.24"]
[Round "6.3"]
[White "Cosma, Elena-Luminita"]
[Black "Obada, Ema"]
[Result "1/2-1/2"]
[ECO "E18"]
[WhiteElo "2281"]
[BlackElo "2010"]
[Annotator "RC"]
[PlyCount "75"]
[EventDate "2022.02.20"]
[EventType "swiss"]
[EventCountry "ROU"]
[SourceTitle "playchess.com"]
[Source "ChessBase"]
[SourceQuality "1"]
[TimeControl "40/5400+30:900+30"]

1. d4 {[%emt 0:00:17]} e6 {[%emt 0:00:08]} 2. g3 {[%emt 0:00:29]} Nf6 {[%emt 0:00:15]} 3. Bg2 {[%emt 1:31:14]} Be7 {[%emt 1:31:37]} 4. c4 {[%emt 0:00:00]} d5 {[%emt 0:00:00]} 5. Nc3 {[%emt 0:00:00]} O-O {[%emt 0:00:00]} 6. Nf3 {[%emt 0:00:00]} b6 {[%emt 0:00:00]} 7. cxd5 {[%emt 0:00:00]} exd5 {[%emt 0:00:00]} 8. O-O {[%emt 0:00:00]} Bb7 {[%emt 0:00:00]} 9. Bf4 {[%emt 0:00:00]} Na6 {[%emt 0:00:00]} 10. Rc1 {[%emt 0:00:00]} c5 {[%emt 0:00:00]} 11. Ne5 {[%emt 0:00:00]} Nc7 {[%emt 0:00:00]} 12. dxc5 {[%emt 0:00:00]} Bxc5 {[%emt 0:00:00]} 13. Qb3 {[%emt 0:00:00]} Ne6 {[%emt 0:00:00]} 14. Rcd1 {[%emt 0:00:00]} Nd4 {[%emt 0:00:00]} 15. Qa4 {[%emt 0:00:00]} b5 {[%emt 0:00:00]} 16. Nxb5 {[%emt 0:00:00]} Nxe2+ {[%emt 0:00:00]} 17. Kh1 {[%emt 0:00:00]} Nxf4 {[%emt 0:00:00]} 18. Qxf4 {[%emt 0:00:00]} Ba6 {[%emt 0:00:00]} 19. a4 {[%emt 0:00:00]} Qb6 {[%emt 0:00:00]} 20. Ng4 {[%emt 0:00:00]} Nxg4 {[%emt 0:00:00]} 21. Qxg4 {[%emt 0:00:00]} Bxb5 {[%emt 0:00:00]} 22. axb5 {[%emt 0:00:00]} Qxb5 {[%emt 0:00:00]} 23. Bxd5 {[%emt 0:00:00]} Rad8 {[%emt 0:00:00]} 24. Qf3 {[%emt 0:00:00]} Bd4 {[%emt 0:00:00]} 25. Bb3 {[%emt 0:01:04]} a5 {[%emt 0:00:00]} 26. Kg2 {[%emt 0:02:13]} Bf6 {[%emt 0:00:00]} 27. h4 {[%emt 0:03:16]} Rb8 {[%emt 0:00:00]} 28. Rd3 {[%emt 0:02:53]} a4 {[%emt 0:00:00]} 29. Bc2 {[%emt 0:00:12]} Bxb2 {[%emt 0:07:49]} 30. Qe4 {[%emt 0:00:56]} g6 {[%emt 0:00:32]} 31. Bxa4 {[%emt 0:03:26]} Qb4 {[%emt 0:00:26]} 32. Qxb4 {[%emt 0:00:00]} Rxb4 {[%emt 0:00:03]} 33. Bb3 {[%emt 0:00:00]} Rfb8 {[%emt 0:02:36]} 34. Bd5 {[%emt 0:00:00]} Rd4 {[%emt 0:00:12]} 35. Rxd4 {[%emt 0:00:00]} Bxd4 {[%emt 0:00:04]} 36. Rd1 {[%emt 0:00:00]} Bc5 {[%emt 0:00:25]} 37. Rc1 {[%emt 0:00:00]} Rc8 {[%emt 0:02:00]} 38. Rc4 {[%emt 0:00:56]} 1/2-1/2

[Event "Romanian-ch Women 2022"]
[Site "Eforie Nord"]
[Date "2022.02.24"]
[Round "6.4"]
[White "Cosman, Andreea-Marioara"]
[Black "Bulmaga, Irina"]
[Result "1/2-1/2"]
[ECO "E61"]
[WhiteElo "2127"]
[BlackElo "2390"]
[Annotator "RC"]
[PlyCount "83"]
[EventDate "2022.02.20"]
[EventType "swiss"]
[EventCountry "ROU"]
[SourceTitle "playchess.com"]
[Source "ChessBase"]
[SourceQuality "1"]
[TimeControl "40/5400+30:900+30"]

1. d4 {[%emt 0:00:04]} d6 {[%emt 0:00:09]} 2. Nf3 {[%emt 0:00:47]} Nf6 {[%emt 0:00:13]} 3. c4 {[%emt 0:00:16]} g6 {[%emt 0:00:20]} 4. Nc3 {[%emt 0:00:06]} Bg7 {[%emt 0:00:06]} 5. Bg5 {[%emt 0:00:19]} O-O {[%emt 0:02:20]} 6. e3 {[%emt 0:02:04]} c6 {[%emt 0:01:56]} 7. Be2 {[%emt 0:01:19]} Nbd7 {[%emt 0:04:04]} 8. Qc2 {[%emt 0:03:35]} h6 {[%emt 0:02:45]} 9. Bh4 {[%emt 0:01:06]} e5 {[%emt 0:06:43]} 10. Rd1 {[%emt 0:05:25]} Qa5 {[%emt 0:15:31]} 11. O-O {[%emt 0:00:53]} Re8 {[%emt 0:04:14]} 12. a3 {[%emt 0:03:56]} Qc7 {[%emt 0:07:59]} 13. b4 {[%emt 0:02:09]} b6 {[%emt 0:11:41]} 14. dxe5 {[%emt 0:02:54]} dxe5 {[%emt 0:01:33]} 15. Nd2 {[%emt 0:01:17]} Nf8 {[%emt 0:04:20]} 16. Nde4 {[%emt 0:11:52]} Nxe4 {[%emt 0:02:24]} 17. Nxe4 {[%emt 0:00:07]} Bf5 {[%emt 0:00:20]} 18. g4 {[%emt 0:00:29]} Bxe4 {[%emt 0:00:57]} 19. Qxe4 {[%emt 0:00:07]} Nh7 {[%emt 0:07:30]} 20. Rd2 {[%emt 0:15:03]} Bf6 {[%emt 0:00:28]} 21. Bg3 {[%emt 0:01:49]} Ng5 {[%emt 0:00:43]} 22. Qg2 {[%emt 0:00:55]} Ne6 {[%emt 0:05:51]} 23. Bf3 {[%emt 0:07:27]} Rac8 {[%emt 0:00:02]} 24. Rfd1 {[%emt 0:02:40]} Red8 {[%emt 0:01:24]} 25. Qf1 {[%emt 0:02:43]} a5 {[%emt 0:03:44]} 26. Rxd8+ {[%emt 0:05:02]} Rxd8 {[%emt 0:00:02]} 27. Rxd8+ {[%emt 0:01:29]} Bxd8 {[%emt 0:01:35]} 28. Qg2 {[%emt 0:03:45]} axb4 {[%emt 0:00:29]} 29. axb4 {[%emt 0:00:06]} Nf4 {[%emt 0:06:04]} 30. exf4 {[%emt 0:04:50]} exf4 {[%emt 0:00:03]} 31. Bxc6 {[%emt 0:00:20]} fxg3 {[%emt 0:00:07]} 32. hxg3 {[%emt 0:00:20]} Be7 {[%emt 0:00:35]} 33. b5 {[%emt 0:03:16]} Bc5 {[%emt 0:00:10]} 34. Qf3 {[%emt 0:02:15]} Qe7 {[%emt 0:00:26]} 35. Kg2 {[%emt 0:04:12]} Kg7 {[%emt 0:00:11]} 36. Bd5 {[%emt 0:00:06]} Qf6 {[%emt 0:00:23]} 37. Qe2 {[%emt 0:00:07]} Qe7 {[%emt 0:01:01]} 38. Qd2 {[%emt 0:08:32]} Qf6 {[%emt 0:01:06]} 39. Bf3 {[%emt 0:01:13]} Qd6 {[%emt 0:00:36]} 40. Qc2 {[%emt 0:00:00]} Qe5 {[%emt 0:00:00]} 41. Bd5 {[%emt 0:04:26]} Qf6 {[%emt 0:01:39]} 42. Qe2 {[%emt 0:01:30]} 1/2-1/2

[Event "Romanian-ch Women 2022"]
[Site "Eforie Nord"]
[Date "2022.02.24"]
[Round "6.5"]
[White "Peptan, Corina-Isabela"]
[Black "Nikanova, Ekaterina"]
[Result "1-0"]
[ECO "D11"]
[WhiteElo "2384"]
[BlackElo "1935"]
[Annotator "RC"]
[PlyCount "55"]
[EventDate "2022.02.20"]
[EventType "swiss"]
[EventCountry "ROU"]
[SourceTitle "playchess.com"]
[Source "ChessBase"]
[SourceQuality "1"]
[TimeControl "40/5400+30:900+30"]

1. d4 {[%emt 0:00:25]} d5 {[%emt 0:00:09]} 2. Nf3 {[%emt 0:00:15]} Nf6 {[%emt 0:00:49]} 3. c4 {[%emt 0:00:07]} c6 {[%emt 0:00:19]} 4. Qc2 {[%emt 0:00:48]} Bg4 {[%emt 0:05:59]} 5. Ne5 {[%emt 0:02:32]} e6 {[%emt 0:06:37]} 6. cxd5 {[%emt 0:11:02]} exd5 {[%emt 0:06:15]} 7. Nc3 {[%emt 0:02:44]} Bh5 {[%emt 0:04:28]} 8. Bg5 {[%emt 0:02:57]} Be7 {[%emt 0:00:46]} 9. O-O-O {[%emt 0:15:17]} Bg6 {[%emt 0:15:02]} 10. Nxg6 {[%emt 0:00:28]} hxg6 {[%emt 0:00:04]} 11. e3 {[%emt 0:05:16]} Nbd7 {[%emt 0:03:31]} 12. g3 {[%emt 0:09:42]} Nf8 {[%emt 0:07:41]} 13. Bxf6 {[%emt 0:14:51]} Bxf6 {[%emt 0:02:58]} 14. e4 {[%emt 0:00:07]} Ne6 {[%emt 0:05:13]} 15. exd5 {[%emt 0:04:13]} cxd5 {[%emt 0:01:06]} 16. Qa4+ {[%emt 0:00:07]} Kf8 {[%emt 0:00:24]} 17. Bg2 {[%emt 0:00:06]} Rh5 {[%emt 0:06:31]} 18. Kb1 {[%emt 0:05:00]} Kg8 {[%emt 0:01:40]} 19. f4 {[%emt 0:02:38]} a6 {[%emt 0:02:03]} 20. Ne2 {[%emt 0:01:07]} Rc8 {[%emt 0:01:30]} 21. Qb3 {[%emt 0:02:07]} Rc4 {[%emt 0:09:50]} 22. Qxb7 {[%emt 0:00:25]} Nxd4 {[%emt 0:01:02]} 23. Nxd4 {[%emt 0:00:07]} Bxd4 {[%emt 0:01:57]} 24. g4 {[%emt 0:00:55]} a5 {[%emt 0:12:17]} 25. Rxd4 {[%emt 0:04:37]} Rxd4 {[%emt 0:00:11]} 26. gxh5 {[%emt 0:00:01]} Qf6 {[%emt 0:00:11]} 27. Qc8+ {[%emt 0:03:58]} Kh7 {[%emt 0:00:10]} 28. Qc2 {[%emt 0:01:18]} 1-0

[Event "Romanian-ch Women 2022"]
[Site "Eforie Nord"]
[Date "2022.02.24"]
[Round "6.6"]
[White "Batagan, Ilinca-Petra"]
[Black "Dragomirescu, Angela"]
[Result "1/2-1/2"]
[ECO "E61"]
[WhiteElo "1881"]
[BlackElo "2167"]
[Annotator "NA RC"]
[PlyCount "62"]
[EventDate "2022.02.20"]
[EventType "swiss"]
[EventCountry "ROU"]
[SourceTitle "playchess.com"]
[Source "ChessBase"]
[SourceQuality "1"]
[TimeControl "40/5400+30:900+30"]

1. d4 {[%emt 0:00:02]} Nf6 {[%emt 0:00:15]} 2. c4 {[%emt 0:00:28]} c5 {[%emt 0:00:28]} 3. e3 {[%emt 0:01:36]} g6 {[%emt 0:01:51]} 4. Nf3 {[%emt 0:00:57]} Bg7 {[%emt 0:00:36]} 5. Nc3 {[%emt 0:00:37]} O-O {[%emt 0:00:34]} 6. e4 {[%emt 0:04:26]} d6 {[%emt 0:10:10]} (6... Qa5 $11 {feels stronger.}) 7. Be2 {[%emt 0:00:37]} b6 {[%emt 0:02:44]} 8. dxc5 {[%emt 0:04:09]} (8. O-O $14) 8... dxc5 {[%emt 0:22:22]} 9. Qc2 {[%emt 0:06:10]} (9. e5 $5 {[%cal Re5f6]} Qxd1+ 10. Bxd1 $11) 9... Nc6 {[%emt 0:01:19]} 10. Bf4 {[%emt 0:06:58]} Bb7 $11 {[%emt 0:09:53]} 11. Rd1 {[%emt 0:03:55]} Qe8 {[%emt 0:09:45]} 12. O-O {[%emt 0:04:10]} e5 {[%emt 0:08:28]} 13. Bg5 {[%emt 0:04:30]} Nh5 {[%emt 0:06:01]} 14. Nd5 {[%emt 0:07:30]} Rc8 {[%emt 0:00:55]} 15. a3 {[%emt 0:09:11]} h6 {[%emt 0:01:28]} 16. Bc1 {[%emt 0:01:03]} f5 {[%emt 0:05:28]} 17. Bd3 {[%emt 0:08:48]} f4 {[%emt 0:00:18]} 18. b4 {[%emt 0:01:00]} g5 {[%emt 0:03:38]} 19. h3 {[%emt 0:03:47]} Nf6 {[%emt 0:05:12]} 20. b5 {[%emt 0:02:21]} Nd8 {[%emt 0:01:12]} 21. Bb2 {[%emt 0:02:11]} Nf7 {[%emt 0:00:13]} 22. Rfe1 {[%emt 0:02:10]} Qe6 {[%emt 0:01:21]} 23. Bf1 {[%emt 0:01:25]} h5 {[%emt 0:02:46]} 24. a4 {[%emt 0:04:25]} Nh7 {[%emt 0:00:27]} 25. a5 {[%emt 0:02:37]} Rcd8 {[%emt 0:02:52]} 26. Rd2 {[%emt 0:04:16]} Bf6 {[%emt 0:00:07]} 27. Red1 {[%emt 0:02:13]} Kh8 {[%emt 0:02:22]} 28. a6 {[%emt 0:02:20]} Bc8 {[%emt 0:00:32]} 29. Nc7 {[%emt 0:04:59]} Rxd2 {[%emt 0:00:06]} 30. Rxd2 {[%emt 0:00:25]} Qe7 {[%emt 0:00:08]} 31. Nd5 {[%emt 0:00:24]} Qe6 {[%emt 0:00:45]} 1/2-1/2

[Event "Romanian-ch Women 2022"]
[Site "Eforie Nord"]
[Date "2022.02.24"]
[Round "6.7"]
[White "Matasaru, Stephanie"]
[Black "Ionescu, Irina"]
[Result "0-1"]
[ECO "B01"]
[WhiteElo "1861"]
[BlackElo "2131"]
[Annotator "RC"]
[PlyCount "46"]
[EventDate "2022.02.20"]
[EventType "swiss"]
[EventCountry "ROU"]
[SourceTitle "playchess.com"]
[Source "ChessBase"]
[SourceQuality "1"]
[TimeControl "40/5400+30:900+30"]

1. e4 {[%emt 0:00:02]} d5 {[%emt 0:00:14]} 2. exd5 {[%emt 0:00:07]} Qxd5 {[%emt 0:00:06]} 3. Nf3 {[%emt 0:00:09]} Bg4 {[%emt 0:01:54]} 4. Be2 {[%emt 0:00:25]} Nc6 {[%emt 0:00:18]} 5. h3 {[%emt 0:03:47]} Bh5 {[%emt 0:01:41]} 6. d4 {[%emt 0:07:54]} O-O-O {[%emt 0:02:08]} 7. c4 {[%emt 0:02:13]} Qd7 {[%emt 0:07:37]} 8. d5 {[%emt 0:05:11]} Bxf3 {[%emt 0:04:37]} 9. Bxf3 {[%emt 0:01:36]} Ne5 {[%emt 0:01:18]} 10. Be2 {[%emt 0:01:29]} e6 {[%emt 0:00:37]} 11. Nc3 {[%emt 0:06:22]} Nf6 {[%emt 0:06:15]} 12. Bf4 {[%emt 0:09:45]} Ng6 {[%emt 0:03:57]} 13. Bg5 {[%emt 0:01:03]} Be7 {[%emt 0:17:13]} 14. Nb5 {[%emt 0:11:07]} a6 {[%emt 0:05:07]} 15. Na7+ {[%emt 0:02:17]} Kb8 {[%emt 0:00:06]} 16. Nc6+ {[%emt 0:00:32]} bxc6 {[%emt 0:07:37]} 17. Qb3+ {[%emt 0:00:32]} Ka8 {[%emt 0:05:19]} 18. Qa4 {[%emt 0:04:44]} cxd5 {[%emt 0:04:22]} 19. Qxa6+ {[%emt 0:00:53]} Kb8 {[%emt 0:00:04]} 20. Rd1 {[%emt 0:13:28]} Qd6 {[%emt 0:01:26]} 21. Qxd6 {[%emt 0:03:01]} Bxd6 {[%emt 0:02:34]} 22. cxd5 {[%emt 0:00:11]} Bb4+ {[%emt 0:00:46]} 23. Kf1 {[%emt 0:00:54]} Rxd5 {[%emt 0:00:14]} 0-1